Cogmind - Beta 11.1 @@@ ROGUE MODE // 2022.06.10 @ 02:33:46 Player: woegarden Result: Destroyed by C-17 Slicer with Blade Saw Performance ------------- Evolutions (2) 1000 Regions Visited (7) 1400 Robots Destroyed (0) 0 Value Destroyed (0) 0 Prototype IDs (23) 460 Alien Tech Used (0) 0 Bonus (864) 864 TOTAL SCORE: 3724 Bonus ------- Pacifist 564 Aligned with FarCom 300 Cogmind --------- Core Integrity 0/550 Matter 280/300 Energy 100/100 System Corruption 1% Temperature Cool (0) Movement Core (50) Location -8/Materials Parts ------- > --- POWER (1) -------- (None) > --- PROPULSION (4) --- (None) > --- UTILITY (4) ------ (None) > --- WEAPON (2) ------- (None) > --- INVENTORY (5) ---- Cesium-ion Thruster Flying Fortress v7 Peak State ------------ > --- POWER ------------ Light Ion Engine > --- PROPULSION ------- Flying Fortress v7 > --- UTILITY ---------- Advanced Visual Processing Unit > --- WEAPON ----------- Pulse Rifle > --- INVENTORY -------- ECM Suite [Rating: 39] Favorites ----------- Power Light Ion Engine Engine Light Ion Engine Propulsion Flying Fortress v7 Flight Unit Flying Fortress v7 Utility Humpback Device Weight Redist. System Storage Humpback Processor Advanced Visual Processing Unit Weapon Pulse Rifle Energy Gun Pulse Rifle Build | -11 -10 -10 -9 -9 -9 -8 -8 ------- Run | Scr Mat Min Mat Min Exi Min Mat Slots Evolved 4 | . . . 2 . . . 2 Power . | . . . . . . . . Propulsion 2 | . . . . . . . 2 Utility 2 | . . . 2 . . . . Weapon . | . . . . . . . . Parts Attached 9 | . . . . . 1 1 7 Power 1 | . . . . . . . 1 Engine 1 | . . . . . . . 1 Core . | . . . . . . . . Reactor . | . . . . . . . . Propulsion 3 | . . . . . . . 3 Treads . | . . . . . . . . Leg . | . . . . . . . . Wheel . | . . . . . . . . Hover . | . . . . . . . . Flight 3 | . . . . . . . 3 Utility 4 | . . . . . 1 1 2 Device 1 | . . . . . . . 1 Storage 2 | . . . . . 1 1 . Processor 1 | . . . . . . . 1 Hackware . | . . . . . . . . Protection . | . . . . . . . . Artifact . | . . . . . . . . Weapon 1 | . . . . . . . 1 Energy Gun 1 | . . . . . . . 1 Energy Cannon . | . . . . . . . . Ballistic Gun . | . . . . . . . . Ballistic Cannon . | . . . . . . . . Launcher . | . . . . . . . . Special Weapon . | . . . . . . . . Impact Weapon . | . . . . . . . . Slashing Weapon . | . . . . . . . . Piercing Weapon . | . . . . . . . . Special Melee Weapon . | . . . . . . . . Unidentified Prototypes . | . . . . . . . . Parts Lost 3 | . . . . . . . 3 Power 1 | . . . . . . . 1 Propulsion 2 | . . . . . . . 2 Utility . | . . . . . . . . Weapon . | . . . . . . . . Highest Loss Streak 2 | . . . . . . . 2 To Critical Strikes . | . . . . . . . . Average Slot Usage (%) 9 | . . . . . 9 10 11 Storage 8 | . . . . . 9 10 . Naked Turns 561 | . 40 52 86 160 139 18 66 Heaviest Build 200 | . . . . . 200 200 6 Greatest Support 50 | 3 3 3 3 3 3 3 50 Greatest Overweight (x) 66 | . . . . . 66 66 . Average Overweight (x) 2 | . . . . . 6 39 . Largest Inventory Capacity 35 | 5 5 5 5 5 35 35 5 Average Capacity 27 | 5 5 5 5 5 31 34 5 Most Carried 5 | 4 . . . . 4 4 5 Average Carried 3 | 2 . . . . 3 4 4 Final Capacity 35 | 5 5 5 5 5 35 5 5 Final Carried 5 | . . . . . 4 4 5 Class Distribution -------------------- 74% | Hauler-Mutant 25% | Mutant Dominant Class ---------------- Mutant | -10/Materials Mutant | -10/Mines Mutant | -9/Materials Mutant | -9/Mines Hauler-Mutant | -9/Exiles Hauler-Mutant | -8/Mines Mutant | -8/Materials Resources | -11 -10 -10 -9 -9 -9 -8 -8 ----------- Run | Scr Mat Min Mat Min Exi Min Mat Matter Collected 200 | 200 . . . . . . . Remotely . | . . . . . . . . Salvage Created . | . . . . . . . . Parts . | . . . . . . . . Haulers Intercepted . | . . . . . . . . Recyclers Shooed 2 | . . . . 1 . . 1 Parts Field Recycled . | . . . . . . . . Retrieved Matter . | . . . . . . . . Parts Self-Destructed . | . . . . . . . . Prevented . | . . . . . . . . Kills | -11 -10 -10 -9 -9 -9 -8 -8 ------- Run | Scr Mat Min Mat Min Exi Min Mat Combat Hostiles Destroyed . | . . . . . . . . Classes Destroyed . | . . . . . . . . Best Kill Streak . | . . . . . . . . Combat Bots Only . | . . . . . . . . Max Kills in Single Turn . | . . . . . . . . Gunslinging . | . . . . . . . . Exploded . | . . . . . . . . Melee . | . . . . . . . . Uniques/NPCs Destroyed . | . . . . . . . . Combat | -11 -10 -10 -9 -9 -9 -8 -8 -------- Run | Scr Mat Min Mat Min Exi Min Mat Damage Taken 1374 | . 85 . 144 68 . 306 771 Core 1023 | . 85 . 144 68 . 168 558 Absorbed by Shields . | . . . . . . . . Core Remaining (%) 57 | 100 . 66 . . . 5 . Volleys Fired . | . . . . . . . . Largest . | . . . . . . . . Hottest . | . . . . . . . . Shots Fired . | . . . . . . . . Gun . | . . . . . . . . Cannon . | . . . . . . . . Launcher . | . . . . . . . . Special . | . . . . . . . . Kinetic . | . . . . . . . . Thermal . | . . . . . . . . Explosive . | . . . . . . . . Electromagnetic . | . . . . . . . . Robot Hit Streak . | . . . . . . . . Robot Miss Streak . | . . . . . . . . Penetration Max . | . . . . . . . . Secondary Targets . | . . . . . . . . Shots Hit Robots . | . . . . . . . . Core Hits 3 | . . . . . . 1 2 Critical Kills . | . . . . . . . . Critical Parts Destroyed . | . . . . . . . . Critical Strikes . | . . . . . . . . Melee Attacks . | . . . . . . . . Impact . | . . . . . . . . Slashing . | . . . . . . . . Piercing . | . . . . . . . . Sneak Attacks . | . . . . . . . . Combat Hostiles . | . . . . . . . . Follow-up Attacks . | . . . . . . . . Damage Inflicted 119 | . 27 . . 8 . 14 70 Guns . | . . . . . . . . Cannons . | . . . . . . . . Explosions . | . . . . . . . . Melee . | . . . . . . . . Ramming 119 | . 27 . . 8 . 14 70 Kinetic . | . . . . . . . . Thermal . | . . . . . . . . Explosive . | . . . . . . . . Electromagnetic . | . . . . . . . . Impact . | . . . . . . . . Slashing . | . . . . . . . . Piercing . | . . . . . . . . Highest Corruption 1 | . . . . . . . 1 Average Corruption 1 | . . . . . . . 1 Corruption Purged . | . . . . . . . . Corruption Blocked . | . . . . . . . . Overload Shots . | . . . . . . . . Overflow Damage . | . . . . . . . . Projectiles . | . . . . . . . . Explosions . | . . . . . . . . Melee . | . . . . . . . . Knockbacks 1 | . . . . . . . 1 Impact 1 | . . . . . . . 1 Kinetic . | . . . . . . . . Secondary . | . . . . . . . . Self-Inflicted Damage 53 | . 13 . . 3 . 6 31 Shots . | . . . . . . . . Rammed 24 | . 3 . . 2 . 6 13 Targets Rammed 24 | . 3 . . 2 . 6 13 Kicked . | . . . . . . . . Crushed . | . . . . . . . . Highest Temperature 8 | . . . . . . . 8 Average Temperature 4 | . . . . . . . 4 Received Heat Transfer 321 | . . . 69 18 . . 234 Siege Activations . | . . . . . . . . Robots Corrupted . | . . . . . . . . Combat Hostiles . | . . . . . . . . Parts Fried . | . . . . . . . . Impact Corruptions . | . . . . . . . . Robots Melted . | . . . . . . . . Combat Hostiles . | . . . . . . . . Parts Melted . | . . . . . . . . Heat Transferred . | . . . . . . . . Parts Sabotaged . | . . . . . . . . Parts Stolen . | . . . . . . . . Parts Stripped . | . . . . . . . . Power Chain Reactions . | . . . . . . . . Missiles Intercepted . | . . . . . . . . Alert | -11 -10 -10 -9 -9 -9 -8 -8 ------- Run | Scr Mat Min Mat Min Exi Min Mat Peak Influence 90 | . 15 5 76 89 . 15 90 Initial 29 | . . 5 1 29 . . . Average 9 | . . 5 22 70 . . 11 Maximum Alert Level . | . . . . . . . . Low Security (%) 100 | 100 100 100 100 100 . 100 100 Level 1 . | . . . . . . . . Level 2 . | . . . . . . . . Level 3 . | . . . . . . . . Level 4 . | . . . . . . . . Level 5 . | . . . . . . . . High Security . | . . . . . . . . Max Security . | . . . . . . . . Squads Dispatched 6 | . . . 2 . . . 4 Investigation . | . . . . . . . . Extermination . | . . . . . . . . Reinforcement 6 | . . . 2 . . . 4 Assault . | . . . . . . . . Garrison . | . . . . . . . . Intercept . | . . . . . . . . Searches Triggered . | . . . . . . . . Construction Impeded . | . . . . . . . . Haulers Reinforced . | . . . . . . . . Active Scanning Responses . | . . . . . . . . Cargo Convoy Interrupts . | . . . . . . . . Stealth | -11 -10 -10 -9 -9 -9 -8 -8 --------- Run | Scr Mat Min Mat Min Exi Min Mat Distress Signals 3 | . 1 . . . . 1 1 Communications Jammed . | . . . . . . . . Distress Signals . | . . . . . . . . Times Spotted 41 | . 5 . 8 4 . 4 20 Peak Tracking Total 12 | . 4 . 8 3 . 4 12 Tactical Retreats 7 | . . . 1 4 . . 2 Traps | -11 -10 -10 -9 -9 -9 -8 -8 ------- Run | Scr Mat Min Mat Min Exi Min Mat Traps Triggered 1 | . . . 1 . . . . Indirectly . | . . . . . . . . Trap Hack Attempts . | . . . . . . . . Triggered . | . . . . . . . . Disarmed . | . . . . . . . . Reprogrammed . | . . . . . . . . Reused . | . . . . . . . . Traps Extracted . | . . . . . . . . Installed . | . . . . . . . . Triggered . | . . . . . . . . Machines | -11 -10 -10 -9 -9 -9 -8 -8 ---------- Run | Scr Mat Min Mat Min Exi Min Mat Machines Disabled . | . . . . . . . . Max in Single Turn . | . . . . . . . . Machines Sabotaged . | . . . . . . . . Garrisons Compromised . | . . . . . . . . Overloaded Fab Kills . | . . . . . . . . Hacking | -11 -10 -10 -9 -9 -9 -8 -8 --------- Run | Scr Mat Min Mat Min Exi Min Mat Machines Accessed 2 | . . . . . 1 . 1 Terminals 1 | . . . . . . . 1 Fabricators . | . . . . . . . . Repair Stations . | . . . . . . . . Recycling Units . | . . . . . . . . Scanalyzers . | . . . . . . . . Garrison Access . | . . . . . . . . Total Hacks 3 | . . . . . 1 . 2 Successful 1 | . . . . . 1 . . Failed 2 | . . . . . . . 2 Catastrophic 1 | . . . . . . . 1 Database Lockouts . | . . . . . . . . Manual 1 | . . . . . 1 . . Terminals 2 | . . . . . . . 2 Fabricators . | . . . . . . . . Repair Stations . | . . . . . . . . Recycling Units . | . . . . . . . . Scanalyzers . | . . . . . . . . Garrison Access . | . . . . . . . . Terminal Hacks 1 | . . . . . 1 . . EX-Prototype ID Bank 1 | . . . . . 1 . . Fabricator Hacks . | . . . . . . . . Repair Station Hacks . | . . . . . . . . Recycling Unit Hacks . | . . . . . . . . Scanalyzer . | . . . . . . . . Garrison Access Hacks . | . . . . . . . . Unauthorized Hacks . | . . . . . . . . Terminals . | . . . . . . . . Fabricators . | . . . . . . . . Repair Stations . | . . . . . . . . Recycling Units . | . . . . . . . . Scanalyzers . | . . . . . . . . Garrison Access . | . . . . . . . . Data Cores Recovered . | . . . . . . . . Used . | . . . . . . . . Hacking Detections 1 | . . . . . . . 1 Full Trace Events . | . . . . . . . . Feedback Events . | . . . . . . . . Feedback Blocked . | . . . . . . . . Robot Schematics Acquired . | . . . . . . . . Robots Built . | . . . . . . . . Authchips . | . . . . . . . . Time . | . . . . . . . . Total Robot Build Rating . | . . . . . . . . Part Schematics Acquired . | . . . . . . . . Parts Built . | . . . . . . . . Authchips . | . . . . . . . . Time . | . . . . . . . . Total Part Build Rating . | . . . . . . . . Parts Repaired . | . . . . . . . . Time . | . . . . . . . . Parts Recycled . | . . . . . . . . Recycled Matter . | . . . . . . . . Retrieved Matter . | . . . . . . . . Retrieved Components . | . . . . . . . . Parts Scanalyzed . | . . . . . . . . Part Schematics Acquired . | . . . . . . . . Parts Damaged . | . . . . . . . . Bothacking | -11 -10 -10 -9 -9 -9 -8 -8 ------------ Run | Scr Mat Min Mat Min Exi Min Mat Used RIF Installer . | . . . . . . . . Robots Hacked . | . . . . . . . . Non-combat . | . . . . . . . . Combat . | . . . . . . . . Robot Hacks Applied . | . . . . . . . . Relay Couplers Released . | . . . . . . . . Fabnet Peak Effective % . | . . . . . . . . Robots Rewired . | . . . . . . . . Allies Hacked . | . . . . . . . . Hacks Repelled . | . . . . . . . . Allies | -11 -10 -10 -9 -9 -9 -8 -8 -------- Run | Scr Mat Min Mat Min Exi Min Mat Total Allies 3 | . . . . 3 . . . Largest Group 3 | . . . . 3 . . . Highest-Rated Group 40 | . . . . 40 . . . Highest-Rated Ally 16 | . . . . 16 . . . Total Orders . | . . . . . . . . Ally Attacks 14 | . . . . 14 . . . Total Damage 190 | . . . . 190 . . . Kills 1 | . . . . 1 . . . Allies Corrupted . | . . . . . . . . Allies Melted . | . . . . . . . . Intel | -11 -10 -10 -9 -9 -9 -8 -8 ------- Run | Scr Mat Min Mat Min Exi Min Mat Robot Analysis Total . | . . . . . . . . Derelict Logs Recovered 1 | . . 1 . . . . . Drone Launches . | . . . . . . . . Drone Recoveries . | . . . . . . . . Exploration | -11 -10 -10 -9 -9 -9 -8 -8 ------------- Run | Scr Mat Min Mat Min Exi Min Mat Turns Passed 2915 | 3 40 52 86 160 1045 1283 246 Spaces Moved 1462 | 1 73 103 171 315 303 59 437 Core 1449 | 1 73 103 171 315 303 59 424 Treads . | . . . . . . . . Legs . | . . . . . . . . Wheels . | . . . . . . . . Hover . | . . . . . . . . Flight 13 | . . . . . . . 13 Fastest Speed 35 | 50 50 50 50 50 50 50 35 Average Speed 192 | 50 50 50 50 50 354 2007 49 Slowest Speed 3350 | 50 50 50 50 50 3350 3350 50 Overloaded Moves . | . . . . . . . . Propulsion Burnouts . | . . . . . . . . Robots Hopped . | . . . . . . . . Cave-ins Triggered . | . . . . . . . . Exploration Rate (%) 37 | 2 21 45 31 76 71 10 42 Regions Visited 7 Branch Regions 4 Pre-discovered Areas 1 | . . 1 . . . . . Known Exits Taken . | . . . . . . . . Unknown Exits Taken 7 | 1 1 1 1 1 1 1 . Scrap Searched 1 | . . . . 1 . . . Spaces Dug . | . . . . . . . . Terrain Destroyed . | . . . . . . . . Melee . | . . . . . . . . Projectile . | . . . . . . . . AOE . | . . . . . . . . Terrain Rammed . | . . . . . . . . Walls Destroyed . | . . . . . . . . Machines Disabled . | . . . . . . . . Actions | -11 -10 -10 -9 -9 -9 -8 -8 --------- Run | Scr Mat Min Mat Min Exi Min Mat Total 1560 | 5 75 102 170 316 304 124 464 Wait 57 | . . . . . . 57 . Move 1455 | . 72 102 170 314 302 58 437 Hop . | . . . . . . . . Pick Up 5 | . . . . . 1 . 4 Fast Attach 6 | . . . . . 1 1 4 Attach 3 | . . . . . . . 3 Detach 1 | . . . . . . . 1 Swap . | . . . . . . . . Drop 9 | 5 . . . . . 2 2 Fire . | . . . . . . . . Melee . | . . . . . . . . Ram 24 | . 3 . . 2 . 6 13 Kick . | . . . . . . . . Crush . | . . . . . . . . Escape Stasis . | . . . . . . . . Rewire . | . . . . . . . . Trap . | . . . . . . . . Miscellaneous . | . . . . . . . . Route ------- -11/Scrapyard -10/Materials -10/Mines -9/Materials -9/Mines -9/Exiles -8/Mines -8/Materials History --------- Turn | Location | Event 1 | -11/Scrapyard | Released all parts (6) 4 | -11/Scrapyard | Discovered new exit (range 0) 4 | -11/Scrapyard | Entered Materials 41 | -10/Materials | Discovered new exit (range 4) 44 | -10/Materials | Entered Mines 69 | -10/Mines | Found a damaged Exp. Sensor Array with a note attached 74 | -10/Mines | Learned location of Mines (-9) 88 | -10/Mines | Discovered new exit (range 16) 96 | -10/Mines | Entered Materials 96 | -9/Materials | Evolved 2 slots: Utility x2 175 | -9/Materials | Discovered new exit (range 12) 182 | -9/Materials | Entered Mines 185 | -9/Mines | Core integrity fell below 50% 213 | -9/Mines | Found a hidden stash of uninstalled traps 258 | -9/Mines | Assisted by bots powering up and referring to "LRC-V3" 309 | -9/Mines | Build established: Mutant 340 | -9/Mines | Deemed a non-threat by the Exiles lab entrance 340 | -9/Mines | Discovered new exit (range 5) 342 | -9/Mines | Entered Exiles 355 | -9/Exiles | Met 8R-AWN 364 | -9/Exiles | Met EX-HEX 378 | -9/Exiles | Met EX-BIN 384 | -9/Exiles | Aligned with FarCom system 384 | -9/Exiles | Given EX-Vault access code 396 | -9/Exiles | Opened EX-Vault 400 | -9/Exiles | Found Flying Fortress v7 412 | -9/Exiles | Warned to stay clear of 0b10 Research branches 425 | -9/Exiles | Met EX-DEC 787 | -9/Exiles | Build established: Hauler-Mutant 1119 | -9/Exiles | Discovered new exit (range 10) 1387 | -9/Exiles | Left Exiles lab with Flying Fortress v7 1387 | -9/Exiles | Entered Mines 2554 | -8/Mines | Discovered new exit (range 8) 2663 | -8/Mines | Core integrity fell below 20% 2670 | -8/Mines | Entered Materials 2670 | -8/Materials | Evolved 2 slots: Propulsion x2 2868 | -8/Materials | Core integrity fell below 50% 2904 | -8/Materials | Core integrity fell below 20% 2916 | -8/Materials | Destroyed by C-17 Slicer with Blade Saw Last Messages --------------- 02861_ Slammed into C-17 Slicer. 02862_ Destabilizing: System corrupted (+1). 02862_ Pulse Rifle severed. 02863_ Acquired Cesium-ion Thruster. 02865_ Slammed into G-47 Trooper. 02865_ Destabilizing: Core damaged (-22). 02866_ Slammed into G-47 Trooper. 02867_ Critical hit (Burn: +37). 02870_ Slammed into R-06 Scavenger. 02871_ Slammed into A-02 Transporter. 02872_ Slammed into R-06 Scavenger. 02883_ Knocked back. 02887_ Acquired Cesium-ion Thruster. 02890_ Cesium-ion Thruster destroyed. 02892_ O-16 Technician: "IFF HANDSHAKE FAILED. SECURING TERMINAL." 02894_ O-16 Technician uses terminal to summon reinforcements. 02894_ ALERT: Hostiles spotted, dispatching reinforcements to Terminal M012. 02894_ O-16 Technician locks terminal. 02896_ Adv. Visual Processing Unit severed. Map ----- +----------------------------------------------------+ | ? #?????????????????## ##?####?? | | ?? #?????????????????# #??????? | | ??# #?????????######### #??????? | | ??# #????????## T #??????? | | ??# #???????## # #??????? | | ??# ######### # #??????? | | ??# ###+###??????? | | ??# #? ????????? | | ?## ##### """ #? ????????? | | ## #??# """ ! ## ] ???????? | | #??# """ l! ## ???????? | | T #??# """ g ## ??????? | | #??# """ Y g## [ ??????? | | ## #??# ggg########????? | | ?#######??# +????? | | ??????????# #### ###??? | | ###??###### #??# ########### #??? | | # #### ## ???# #?????????+ #??? | | ## ???# #?????????## #??? | | ## ???# ???????????# ##??? | | [=/ ## ???# ???????????# #???? | | ! ! ### ???# ???????????# #???? | | [=/ #?? ???# ???????????# #???? | | #?? ???? ???????????# #???? | | #?? ???? ############c #???? | | "T" #?? ?# @c #???? | | """ #????????############### #???? | | #########???????????????????????+#???? | | ?????????????????????????????????????? | | ?????????????????????????????????????? | | ?????????????????????????????????????? | | ?????????????????????????????????????? | | ?????????????????????????????????????? | | ?????????????????????????????????????? | | ?????????????????????????????????????? | | ?????????????????????????????????????? | | ?????????????????????????????????????? | | ?????????????????????????????????????? | | ?????????????????????????????????????? | | ?????????????????????????????????????? | | ?????????????????????????????????????? | | ?????????????????????????????????????? | | ?????????????????????????????????????? | | ?????????????????????????????????????? | | ?????????????????????????????????????? | | ?????????????????????????????????????? | | ?????????????????????????????????????? | | ?????????????????????????????????????? | | ?????????????????????????????????????? | | ?????????????????????????????????????? | +----------------------------------------------------+ Best States ------------- Heat Dissipation 31 Energy Generation 5 Energy Capacity 100 Matter Stores 300 Matter Capacity 300 Sight Range 20 Terrain Scan Density 10 Evasion (%) 63 Item Schematics ----------------- None Robot Schematics ------------------ None Fabricated ------------ Nothing Alien Tech Used ----------------- None Achievements -------------- None Challenges ------------ None Game ------ Seed IonBottomlessUnit Manual? 0 Play Time 00:12:45 Cumulative 88.2 hours Start 2022.06.10 @ 02:21:50 End 2022.06.10 @ 02:33:46 Sessions 1 Manual Loads 0 Difficulty Rogue Special Mode None Game No. 142 Rogue 96 Adventurer 45 Explorer 1 Win Type - Total 0 Types 0/0/0/0/0/0/0/0/0 Lore% 27 Gallery% 48 Achievement% 34 Wizard Run 0 Options --------- ASCII 0 Keyboard 0 Movement Mouse Keybinds 0 Fullscreen 2 Font 18/X11Bold Map View 76x50 Tactical HUD 1 Map Filters NONE Filters LOW_CONTRAST(13,24,33)|BRIGHTNESS(90)|SATURATION(87) Steam 1 RUN: 6cb14962-46ac-4edc-925e-0f9d4ca4e790